{"text_format":"1","workbook":"xlsx","n_sheets":3,"sheets":["Prompt","Cedula3BP","Enviar"],"not_rendered":{"charts":0,"images":4,"macros":1,"external_links":0,"defined_names":0,"comments":1,"pivot_tables":0},"unopened":[],"bounds":{"document_bytes":16777216,"sheet_cells":100000,"rows_first":2000,"rows_last":500,"rows_between":2000,"halvings":0,"cell_chars":16384,"cell_head_chars":4096},"cells_cut":0,"cells_raw":0,"read":"whole","date_system":"1900"}

{"sheet":"Prompt","index":0,"n_rows":38,"n_cols":4,"rows_kept":38,"cut":false,"hidden":false,"merged":[[0,3,1,5],[3,1,5,8],[8,1,9,8],[37,1,38,8]]}
[null,null,null,"¡ATENCIÓN!"]
[]
[]
[null,"Para hacer uso de las funcionalidades de esta Cédula Electrónica debe habilitar macros"]
[]
[]
[]
[]
[null,"Si utiliza Excel 2000, 2002, 2003 siga el siguiente procedimiento:"]
[]
[]
[]
[]
[]
[]
[]
[]
[]
[]
[]
[]
[]
[]
[]
[]
[]
[]
[]
[]
[]
[]
[]
[]
[]
[]
[]
[]
[null,"Si utiliza Excel 2007 siga el siguiente procedimiento:"]

{"sheet":"Cedula3BP","index":1,"n_rows":100,"n_cols":21,"rows_kept":100,"cut":false,"hidden":true,"merged":[[0,18,0,20],[57,17,57,20],[55,17,55,20],[56,2,56,7],[55,2,55,7],[57,2,57,7],[57,8,57,11],[57,12,57,16],[55,8,55,11],[56,17,56,20],[56,8,56,11],[54,17,54,20],[54,3,54,6],[41,9,41,10],[40,7,41,8],[54,12,54,16],[41,17,41,18],[54,8,54,11],[41,13,41,14],[41,19,41,20],[55,12,55,16],[56,12,56,16],[41,11,41,12],[40,2,42,6],[50,4,50,6],[41,15,41,16],[4,2,4,3],[23,19,23,20],[22,7,23,8],[23,11,23,12],[23,17,23,18],[23,13,23,14],[23,15,23,16],[23,9,23,10],[22,2,24,6],[16,6,16,12],[16,16,16,19],[1,18,3,20],[12,18,12,19],[14,6,14,19],[1,6,1,16],[3,6,3,16],[4,6,4,16],[2,6,2,16]]}
[null,null,null,null,null,null,null,null,null,null,null,null,null,null,null,null,null,null,"CÉDULA"]
[null,null,null,null,null,null,"CENSO EDUCATIVO 2023",null,null,null,null,null,null,null,null,null,null,null,"3BP"]
[null,null,null,null,null,null,"EDUCACIÓN BÁSICA REGULAR"]
[null,null,null,null,null,null,"PRIMARIA"]
[null,null,"Versión :",null,1]
[null,null,"INSTRUCCIONES DEL FORMATO ELECTRÓNICO "]
[]
[]
[]
[null,null,"IDENTIFICACIÓN DEL SERVICIO EDUCATIVO"]
[]
[]
[null,null,"1.  CÓDIGO MODULAR :",null,null,null,null,null,"2. NÚMERO DE ANEXO :",null,null,0,null,"3. CÓDIGO DE LOCAL EDUCATIVO :"]
[]
[null,null,"4.  NOMBRE DEL SERVICIO :",null,null,null,""]
[]
[null,null,"5. DISTRITO :",null,null,null,"",null,null,null,null,null,null,null,null,"LOCALIDAD :  "]
[]
[]
[null,null,"100. RESULTADO DEL EJERCICIO EDUCATIVO"]
[null,null,"Complete y remita esta sección entre diciembre del año 2023 y enero del año 2024."]
[null,null,"101 - RESULTADO DEL EJERCICIO EDUCATIVO A DICIEMBRE DE 2023, POR GRADO DE ESTUDIO Y SEXO"]
[null,null,"SITUACIÓN",null,null,null,null,"TOTAL",null,"GRADO DE ESTUDIO Y SEXO"]
[null,null,null,null,null,null,null,null,null,"1º",null,"2º",null,"3º",null,"4º",null,"5º",null,"6º"]
[null,null,null,null,null,null,null,"H","M","H","M","H","M","H","M","H","M","H","M","H","M"]
["00",null,"TOTAL MATRÍCULA",null,null,null,null,{"$f":"SUM(H27:H33)","v":0},{"$f":"SUM(I27:I33)","v":0},{"$f":"SUM(J27:J33)","v":0},0,0,0,0,0,0,0,0,0,0,0]
["01",null,"Promovidos de grado",null,null,null,"1/",{"$f":"SUM(J27,L27,N27,P27,R27,T27)","v":0},0]
["02",null,"Requiere recuperación pedagógica   2/",null,null,null,null,{"$f":"SUM(J28,L28,N28,P28,R28,T28)","v":0},{"$f":"SUM(K28,M28,O28,Q28,S28,U28)","v":0}]
["03",null,"Permanecen en el grado",null,null,null,"3/",{"$f":"SUM(J29,L29,N29,P29,R29,T29)","v":0},{"$f":"SUM(K29,M29,O29,Q29,S29,U29)","v":0}]
["04",null,"Trasladados a otros SS.EE.",null,null,null,"4/",0,0]
["05",null,"Postergación de evaluación",null,null,null,"5/",0,0]
["06",null,"Retirados",null,null,null,"6/",0,0]
["07",null,"Fallecidos",null,null,null,null,0,0]
[]
[]
[]
[]
[]
[]
[null,null,"102 - RETIRADOS POR GRADO DE ESTUDIO Y SEXO, SEGÚN MOTIVO"]
[null,null,"MOTIVO",null,null,null,null,"TOTAL",null,"GRADO DE ESTUDIO Y SEXO"]
[null,null,null,null,null,null,null,null,null,"1º",null,"2º",null,"3º",null,"4º",null,"5º",null,"6º"]
[null,null,null,null,null,null,null,"H","M","H","M","H","M","H","M","H","M","H","M","H","M"]
["00",null,"TOTAL RETIRADOS",null,null,null,null,{"$f":"SUM(H45:H51)","v":0},0,0,0,0,0,0,0,0,0,0,0,0,0]
["01",null,"Situación económica",null,null,null,null,{"$f":"SUM(J45,L45,N45,P45,R45,T45)","v":0},{"$f":"SUM(K45,M45,O45,Q45,S45,U45)","v":0}]
["02",null,"Violencia",null,null,null,null,{"$f":"SUM(J46,L46,N46,P46,R46,T46)","v":0},{"$f":"SUM(K46,M46,O46,Q46,S46,U46)","v":0}]
["03",null,"Enfermedad",null,null,null,null,{"$f":"SUM(J47,L47,N47,P47,R47,T47)","v":0},{"$f":"SUM(K47,M47,O47,Q47,S47,U47)","v":0}]
["04",null,"Trabajo infantil",null,null,null,null,{"$f":"SUM(J48,L48,N48,P48,R48,T48)","v":0},0]
["05",null,"Apoyo en labores agrícolas",null,null,null,null,0,0]
["06",null,"Adicción",null,null,null,null,0,0]
["07",null,"Otros",null,null,null,null,0,0]
[null,null,"Nota.- Los totales de esta tabla deben ser iguales a los reportados en el rubro “Retirados” de la tabla 101"]
[null,null,"DATOS DEL RESPONSABLE DEL LLENADO DE LA CÉDULA"]
[]
[null,null,null,"NOMBRES Y APELLIDOS",null,null,null,null,"CARGO",null,null,null,"CORREO ELECTRÓNICO",null,null,null,null,"TELÉFONO"]
["1"]
["2"]
["3"]
[]
[]
[]
["DIRECTOR(A)"]
["SUB DIRECTOR(A)"]
["DOCENTE"]
["COORDINADOR(A)"]
["ASESOR"]
["ADMINISTRATIVO"]
["ASISTENTE"]
["AUXILIAR"]
["SECRETARIA(O)"]
["ESTADÍSTICO"]
["ESPECIALISTA"]
["BIBLIOTECARIO"]
["CARE"]
["COMANDANTE PNP"]
["CONTADOR"]
["DAIP"]
["DIGITADOR(A)"]
["GERENTE"]
["JEFE ACADÉMICO"]
["JEFE ADMINISTRATIVO"]
["JEFE DE ÁREA"]
["JEFE DE LABORATORIO"]
["JEFE DE PERSONAL"]
["JEFE DE SEDE"]
["JEFE DE UNIDAD"]
["OFICINISTA"]
["OPERADOR DE SISTEMAS"]
["PERSONAL DE SERVICIO"]
["PROGRAMADOR"]
["PROMOTOR(A)"]
["PSICOLOGO"]
["REGISTRADOR(A)"]
["REPRESENTANTE LEGAL"]
["SOPORTE TECNOLOGICO"]
["TÉCNICO ADMINISTRATIVO"]
["TESORERO(A)"]
["TRABAJADOR SOCIAL"]
["TUTOR"]
["OTROS"]

{"sheet":"Enviar","index":2,"n_rows":9,"n_cols":3,"rows_kept":9,"cut":false,"hidden":true,"merged":[[0,0,0,3],[1,0,1,3]]}
["CENSO ESCOLAR 2023"]
["RESULTADO DEL EJERCICIO EDUCATIVO"]
[]
[]
[null,"Paso 1:","Realice el ENVÍO con su clave EOL."]
[]
[null,"Paso 2:","Una vez realizado el ENVÍO,  Revise su constancia de envio."]
[]
[null,"  ADVERTENCIA","Asegúrese de registrar toda la información del nivel informante"]